bitfinex/quotes_BTCUSD_20240918
["timestamp","ask_amount","ask_price","bid_price","bid_amount"]
[1726622033791,1.02474415,60252.0,60251.0,0.0036137]
[1726622034024,1.01574415,60252.0,60251.0,0.0036137]
[1726622034273,1.02074415,60252.0,60251.0,0.0036137]
[1726622034520,1.00774415,60252.0,60251.0,0.0036137]
[1726622034758,1.01374415,60252.0,60251.0,0.0036137]
[1726622035007,0.97874415,60252.0,60251.0,0.0036137]
[1726622035263,0.65880515,60252.0,60251.0,0.0036137]
[1726622035930,0.69384878,60252.0,60251.0,0.0036137]
[1726622036160,1.01378778,60252.0,60251.0,0.0036137]
[1726622036392,0.68284878,60252.0,60251.0,0.0036137]
[1726622036657,1.01978778,60252.0,60251.0,0.0036137]
[1726622036882,0.68784878,60252.0,60251.0,0.0036137]
[1726622037113,0.34084379,60252.0,60251.0,0.0036137]
[1726622037399,0.67578279,60252.0,60251.0,0.0036137]
[1726622037591,1.00772179,60252.0,60251.0,0.0036137]
[1726622037839,1.00472179,60252.0,60251.0,0.0036137]
[1726622038304,0.99072179,60252.0,60251.0,0.0036137]
[1726622038527,0.32684379,60252.0,60251.0,0.0036137]
[1726622038755,0.33284379,60252.0,60251.0,0.0036137]
[1726622038982,0.32684379,60252.0,60251.0,0.0036137]
[1726622039208,0.04487479,60252.0,60251.0,0.08536574]
[1726622039455,0.20184379,60252.0,60251.0,0.0850137]
[1726622039701,0.30184379,60252.0,60251.0,0.0850137]
[1726622039931,0.31084379,60252.0,60251.0,0.0850137]
[1726622040175,0.31084379,60252.0,60251.0,0.0858377]
[1726622040426,0.63978279,60252.0,60251.0,0.0858377]
[1726622040646,0.63978279,60252.0,60251.0,0.08118974]
[1726622040892,0.30984379,60252.0,60251.0,0.08118974]
[1726622041130,0.20984379,60252.0,60251.0,0.08118974]
[1726622041352,0.30984379,60252.0,60251.0,0.08118974]
[1726622041594,0.14387479,60252.0,60251.0,0.08118974]
[1726622041833,0.14387479,60252.0,60251.0,0.24352394]
[1726622042069,0.14387479,60252.0,60251.0,0.33482394]
[1726622042070,0.04387479,60252.0,60251.0,0.33482394]
[1726622042307,0.01783116,60252.0,60251.0,0.66676794]
[1726622042574,0.008,60252.0,60251.0,0.66676794]
[1726622043026,0.165953,60258.0,60252.0,0.165969]
[1726622043268,0.165953,60258.0,60251.0,0.50079594]
[1726622043269,0.331939,60252.0,60251.0,0.0771999]
[1726622043511,0.652908,60252.0,60251.0,0.001824]
[1726622043736,1.32805832,60252.0,60251.0,0.001824]
[1726622043985,1.32805832,60252.0,60251.0,0.000824]
[1726622044635,1.32605832,60252.0,60251.0,0.000824]
[1726622044873,1.35405832,60252.0,60251.0,0.000824]
[1726622045133,1.34005832,60252.0,60251.0,0.000824]
[1726622045383,1.67575385,60252.0,60251.0,0.000824]
[1726622045618,2.09438722,60252.0,60251.0,0.000824]
[1726622045858,2.08038722,60252.0,60251.0,0.000824]
[1726622046095,2.59680403,60252.0,60251.0,0.000824]
[1726622046577,2.29021707,60252.0,60251.0,0.000824]
[1726622046833,2.62280403,60252.0,60251.0,0.000824]
[1726622047084,2.62280403,60252.0,60238.0,0.0063312]
[1726622047085,1.93618277,60239.0,60238.0,0.0063312]
[1726622047345,2.18128926,60239.0,60238.0,0.0063312]
[1726622047596,1.58482012,60236.0,60235.0,0.0001]
[1726622047836,1.70846808,60236.0,60235.0,0.0001]
[1726622048098,2.05227186,60236.0,60235.0,0.0001]
[1726622048792,2.06627186,60236.0,60235.0,0.0001]
[1726622049017,2.22935744,60236.0,60235.0,0.0001]
[1726622049256,2.21535744,60236.0,60235.0,0.0001]
[1726622049514,1.37512212,60219.0,60218.0,0.24977946]
[1726622049746,1.37612212,60219.0,60218.0,0.24977946]
[1726622049978,1.38777496,60219.0,60218.0,0.000823]
[1726622050226,1.41283503,60219.0,60218.0,0.000823]
[1726622050918,0.598255,60210.0,60209.0,0.0052542]
[1726622051180,0.930425,60210.0,60209.0,0.0052542]
[1726622051430,1.29732168,60210.0,60209.0,0.0052542]
[1726622052143,1.32732168,60210.0,60209.0,0.0052542]
[1726622052376,1.68949168,60210.0,60209.0,0.0052542]
[1726622052610,1.36432168,60210.0,60209.0,0.0052542]
[1726622052869,1.35732168,60210.0,60209.0,0.0052542]
[1726622053095,1.72083876,60210.0,60209.0,0.0052542]
[1726622053323,1.73483876,60210.0,60209.0,0.0052542]
[1726622053810,1.73783876,60210.0,60209.0,0.0052542]
[1726622054304,1.73783876,60210.0,60192.0,0.0756]
[1726622054305,1.162924,60193.0,60192.0,0.0756]
[1726622054574,0.71110412,60192.0,60191.0,0.000824]
[1726622054814,1.70791412,60192.0,60191.0,0.000824]
[1726622055045,1.71973924,60192.0,60191.0,0.000824]
[1726622055307,1.38746924,60192.0,60191.0,0.000824]
[1726622055543,1.41354175,60192.0,60191.0,0.000824]
[1726622055782,1.42754175,60192.0,60191.0,0.000824]
[1726622056252,1.76081175,60192.0,60191.0,0.000824]
[1726622056729,1.75981175,60192.0,60191.0,0.000824]
[1726622056976,1.33784263,60192.0,60191.0,0.000824]
[1726622057700,0.31803263,60192.0,60191.0,0.000824]
[1726622057960,0.12582512,60192.0,60191.0,0.00117604]
[1726622058196,0.03982512,60192.0,60191.0,0.07957604]
[1726622058689,0.01182512,60192.0,60191.0,0.07957604]
[1726622058925,0.02482512,60192.0,60191.0,0.07957604]
[1726622059161,0.332238,60198.0,60191.0,0.07957604]
[1726622059395,0.332227,60200.0,60191.0,0.07957604]
[1726622059396,0.1,60197.0,60196.0,0.00035204]
[1726622059933,0.266121,60197.0,60196.0,0.00035204]
[1726622060417,0.266121,60197.0,60191.0,0.24536]
[1726622060418,0.005,60209.0,60202.0,0.00035204]
[1726622060662,0.503264,60209.0,60208.0,0.00035204]
[1726622060914,0.005,60209.0,60208.0,0.00035204]
[1726622061161,0.005,60209.0,60208.0,0.07875204]
[1726622061642,0.005,60209.0,60208.0,0.57702304]
[1726622061883,0.02606193,60213.0,60210.0,0.22913777]
[1726622062612,0.16607,60216.0,60210.0,0.22913777]
[1726622062853,0.85444,60209.0,60208.0,0.08473287]
[1726622063088,0.95444,60209.0,60208.0,0.08473287]
[1726622063322,0.95444,60209.0,60208.0,0.07573287]
[1726622063555,1.286616,60209.0,60208.0,0.07573287]
[1726622063788,0.95344,60209.0,60208.0,0.07573287]
[1726622064020,0.598264,60209.0,60208.0,0.07573287]
[1726622064248,0.599264,60209.0,60208.0,0.07573287]
[1726622064523,0.93144,60209.0,60208.0,0.07573287]
[1726622064781,0.93044,60209.0,60208.0,0.07573287]
[1726622065260,0.93044,60209.0,60208.0,0.08673287]
[1726622065514,0.93044,60209.0,60208.0,0.07573287]
[1726622065978,0.1,60209.0,60208.0,0.07573287]
[1726622066454,0.271088,60209.0,60208.0,0.07573287]
[1726622066689,0.16607,60216.0,60208.0,0.24182287]
[1726622066963,0.03,60231.0,60208.0,0.24182287]
[1726622066964,0.01025311,60209.0,60208.0,0.66690387]
[1726622067218,0.02606036,60227.0,60208.0,0.66690387]
[1726622067219,0.332115,60221.0,60209.0,0.332171]
[1726622067452,0.166058,60220.0,60208.0,0.16863287]
[1726622067708,0.17625256,60220.0,60213.0,0.332152]
[1726622067962,0.17625256,60220.0,60215.0,0.166069]
[1726622068244,0.01019456,60220.0,60216.0,0.166068]
[1726622068516,0.01019456,60220.0,60212.0,0.22913777]
[1726622068744,0.1,60219.0,60216.0,0.166067]
[1726622068996,0.1,60221.0,60216.0,0.166067]
[1726622069227,0.1,60221.0,60214.0,0.332148]
[1726622069228,0.01029783,60218.0,60217.0,0.166065]
[1726622069474,0.1,60221.0,60217.0,0.166065]
[1726622069716,0.1,60221.0,60212.0,0.22913777]
[1726622069717,0.166067,60217.0,60212.0,0.173079]
[1726622069958,0.166067,60217.0,60212.0,0.007]
[1726622070199,0.01012092,60216.0,60212.0,0.007]
[1726622070430,0.01012092,60216.0,60212.0,0.166079]
[1726622070886,0.01012092,60216.0,60213.0,0.166075]
[1726622071132,0.01012092,60216.0,60213.0,0.332153]
[1726622071363,0.001,60217.0,60213.0,0.166075]
[1726622071586,0.01011966,60215.0,60214.0,0.166073]
[1726622071849,0.1,60219.0,60214.0,0.166073]
[1726622071850,0.001,60216.0,60214.0,0.166073]
[1726622072086,0.01013977,60215.0,60214.0,0.166073]
[1726622073005,0.01013977,60215.0,60214.0,0.177073]
[1726622073242,0.166071,60215.0,60214.0,0.011]
[1726622073477,0.0101311,60215.0,60213.0,0.003]
[1726622073717,0.0111311,60215.0,60214.0,0.012]
[1726622074663,0.0111311,60215.0,60214.0,0.178074]
[1726622074897,0.0111311,60215.0,60214.0,0.003]
[1726622074898,0.1772021,60215.0,60214.0,0.003]
[1726622075369,0.5103451,60215.0,60214.0,0.003]
[1726622075844,0.5113451,60215.0,60214.0,0.015]
[1726622076076,0.5103451,60215.0,60214.0,0.003]
[1726622076307,0.166075,60214.0,60208.0,0.33472287]
[1726622076548,0.166078,60213.0,60208.0,0.33472287]
[1726622076784,0.01017172,60213.0,60208.0,0.16863287]
[1726622077043,0.166084,60211.0,60208.0,0.16863287]
[1726622077284,0.166085,60210.0,60208.0,0.16863287]
[1726622077540,0.166088,60209.0,60208.0,0.16863287]
[1726622077780,0.83044,60209.0,60208.0,0.07573287]
[1726622078029,0.84066538,60209.0,60208.0,0.07873287]
[1726622078707,0.50848938,60209.0,60208.0,0.08073287]
[1726622078940,0.17631338,60209.0,60208.0,0.08073287]
[1726622079201,0.50848938,60209.0,60208.0,0.07573287]
[1726622079422,0.50848938,60209.0,60208.0,0.07773287]
[1726622079660,0.50948938,60209.0,60208.0,0.08073287]
[1726622080119,0.50848938,60209.0,60208.0,0.07773287]
[1726622080589,0.50848938,60209.0,60208.0,0.08073287]
[1726622080590,0.01122538,60209.0,60208.0,0.08073287]
[1726622081088,0.84166538,60209.0,60208.0,0.08073287]
[1726622081378,0.50948938,60209.0,60208.0,0.08073287]
[1726622081845,0.50948938,60209.0,60208.0,0.07744465]
[1726622082085,0.50948938,60209.0,60208.0,0.07544465]
[1726622082346,0.84166538,60209.0,60208.0,0.003]
[1726622082645,0.498363,60197.0,60196.0,0.000824]
[1726622082840,0.266121,60197.0,60196.0,0.000824]
[1726622083083,0.60950081,60197.0,60196.0,0.000824]
[1726622083324,0.01113781,60197.0,60196.0,0.000824]
[1726622083564,0.01113781,60197.0,60196.0,0.166947]
[1726622083797,0.1,60203.0,60199.0,0.166114]
[1726622084033,0.166108,60202.0,60197.0,0.16612]
[1726622084269,0.166108,60202.0,60196.0,0.001824]
[1726622084270,0.166113,60200.0,60196.0,0.001824]
[1726622084491,0.1,60201.0,60196.0,0.001824]
[1726622084732,0.002,60197.0,60196.0,0.167946]
[1726622084993,0.1,60201.0,60197.0,0.16612]
[1726622085246,0.09267202,60233.0,60196.0,0.079924]
[1726622085247,0.0112138,60197.0,60196.0,0.910541]
[1726622085490,0.266091,60208.0,60204.0,0.166101]
[1726622085730,0.266091,60208.0,60196.0,0.837318]
[1726622085731,0.266091,60208.0,60203.0,0.166104]
[1726622085977,0.01120711,60207.0,60204.0,0.166099]
[1726622086227,0.1,60206.0,60202.0,0.166106]
[1726622086988,0.1,60206.0,60200.0,0.39524977]
[1726622087271,0.332204,60204.0,60196.0,0.507071]
[1726622087490,0.166103,60204.0,60199.0,0.166114]
[1726622087740,0.166103,60204.0,60202.0,0.000825]
[1726622087741,0.01120711,60203.0,60202.0,0.000825]
[1726622088718,0.166099,60205.0,60202.0,0.000825]
[1726622088982,0.01120038,60203.0,60202.0,0.000825]
[1726622089231,0.166099,60205.0,60202.0,0.000825]
[1726622089472,0.01120038,60203.0,60202.0,0.003825]
[1726622089939,0.1681,60205.0,60202.0,0.003825]
[1726622090187,0.1681,60205.0,60202.0,0.000825]
[1726622090188,0.17730438,60203.0,60202.0,0.000825]
[1726622090447,0.166102,60204.0,60202.0,0.000825]
[1726622090691,0.01120038,60203.0,60202.0,0.001825]
[1726622090942,1.17808406,60203.0,60202.0,0.001825]
[1726622091158,1.17393138,60203.0,60202.0,0.001825]
[1726622091612,1.17127788,60203.0,60202.0,0.001825]
[1726622091836,1.17348836,60203.0,60202.0,0.001825]
[1726622092093,0.84127936,60203.0,60202.0,0.001825]
[1726622092353,1.27348836,60203.0,60202.0,0.000825]
[1726622092588,1.27348836,60203.0,60202.0,0.003825]
[1726622093065,0.94127936,60203.0,60202.0,0.003825]
[1726622094977,0.60907036,60203.0,60202.0,0.003825]
[1726622095728,0.94127936,60203.0,60202.0,0.003825]
[1726622095980,0.60907036,60203.0,60202.0,0.003825]
[1726622096736,0.11075736,60203.0,60202.0,0.003825]
[1726622096968,0.03682168,60203.0,60202.0,0.084425]
[1726622097223,0.11075736,60203.0,60202.0,0.084425]
[1726622098411,0.01075736,60203.0,60202.0,0.084425]
[1726622098895,0.27686136,60203.0,60202.0,0.084425]
[1726622100275,0.60907036,60203.0,60202.0,0.003825]
[1726622100587,0.94127936,60203.0,60202.0,0.003825]
[1726622100783,1.29648836,60203.0,60202.0,0.003825]
[1726622101477,0.94127936,60203.0,60202.0,0.003825]
[1726622101710,0.96427936,60203.0,60202.0,0.003825]
[1726622101965,0.94127936,60203.0,60202.0,0.00045491]
[1726622103148,0.01075736,60203.0,60202.0,0.00045491]
[1726622103381,0.01075736,60203.0,60202.0,0.16656191]
[1726622103616,0.00165,60208.0,60202.0,0.16656191]
[1726622103617,0.166094,60207.0,60202.0,0.00045491]
[1726622103848,0.17683374,60203.0,60202.0,0.00045491]
[1726622104076,0.498313,60203.0,60202.0,0.00045491]
[1726622104331,0.166104,60203.0,60202.0,0.00045491]
[1726622104563,0.01077053,60203.0,60196.0,0.000824]
[1726622105031,0.166121,60197.0,60196.0,0.000824]
[1726622105768,0.17690984,60197.0,60196.0,0.000824]
[1726622106010,0.50915184,60197.0,60196.0,0.000824]
[1726622106243,0.51015184,60197.0,60196.0,0.007824]
[1726622106465,0.17790984,60197.0,60196.0,0.007824]
[1726622106989,0.03785368,60197.0,60196.0,0.007824]
[1726622107215,0.03785368,60197.0,60196.0,0.173947]
[1726622107443,0.168121,60197.0,60196.0,0.007824]
[1726622107896,0.53721585,60197.0,60196.0,0.007824]
[1726622108350,0.17890887,60197.0,60196.0,0.007824]
[1726622108607,0.51115087,60197.0,60196.0,0.007824]
[1726622109088,0.84339287,60197.0,60196.0,0.007824]
[1726622110444,0.51115087,60197.0,60196.0,0.007824]
[1726622110664,0.84339287,60197.0,60196.0,0.007824]
[1726622113806,1.27563487,60197.0,60196.0,0.007824]
[1726622113810,1.29863487,60197.0,60196.0,0.007824]
[1726622114090,1.63087687,60197.0,60196.0,0.007824]
[1726622114335,2.09378754,60197.0,60196.0,0.007824]
[1726622114600,2.2522555,60197.0,60196.0,0.000824]
[1726622114839,1.627215,60192.0,60191.0,0.002504]
[1726622115078,1.85247739,60192.0,60191.0,0.002504]
[1726622115318,1.76886222,60192.0,60191.0,0.002504]
[1726622115554,1.89512461,60192.0,60191.0,0.002504]
[1726622115807,1.89046222,60192.0,60191.0,0.002504]
[1726622116057,2.01468432,60192.0,60191.0,0.002504]
[1726622116309,2.04075632,60192.0,60191.0,0.002504]
[1726622116543,2.02786684,60192.0,60191.0,0.003504]
[1726622116793,2.02787898,60192.0,60191.0,0.003504]
[1726622117052,1.92853422,60192.0,60191.0,0.003504]
[1726622117290,1.93958892,60192.0,60191.0,0.003504]
[1726622117534,1.95258892,60192.0,60191.0,0.003504]
[1726622117806,2.2418966,60192.0,60191.0,0.003504]
[1726622118036,2.1176745,60192.0,60191.0,0.003504]
[1726622118291,2.4499445,60192.0,60191.0,0.002504]
[1726622118523,2.54813514,60192.0,60191.0,0.002504]
[1726622118761,1.86133871,60181.0,60179.0,0.00322]
[1726622119018,2.28576871,60181.0,60179.0,0.00322]
[1726622119261,2.29823079,60181.0,60179.0,0.00322]
[1726622119738,2.44838884,60181.0,60179.0,0.00322]
[1726622120185,2.44838884,60181.0,60153.0,0.0001]
[1726622120186,0.53403471,60175.0,60153.0,0.0001]
[1726622120189,0.86639771,60175.0,60153.0,0.0001]
[1726622120421,1.91644584,60175.0,60163.0,0.24918392]
[1726622120652,1.92677589,60175.0,60162.0,0.005576]
[1726622120886,2.10307589,60175.0,60162.0,0.005576]
[1726622121661,2.11707589,60175.0,60162.0,0.005576]
[1726622121900,2.13107589,60175.0,60162.0,0.005576]
[1726622122136,1.193368,60170.0,60169.0,0.00050605]
[1726622122379,1.316368,60170.0,60169.0,0.00050605]
[1726622122605,1.32671829,60170.0,60169.0,0.00050605]
[1726622123307,1.30571829,60170.0,60169.0,0.00050605]
[1726622123543,1.31471829,60170.0,60169.0,0.00050605]
[1726622125730,1.34080001,60170.0,60169.0,0.00050605]
[1726622131205,0.02835029,60170.0,60169.0,0.32785976]
[1726622131468,0.19454529,60170.0,60169.0,0.17500605]
[1726622131667,0.184195,60170.0,60169.0,0.17500605]
[1726622131895,0.859213,60170.0,60169.0,0.00050605]
[1726622132125,1.191604,60170.0,60169.0,0.00050605]
[1726622132355,1.182604,60170.0,60169.0,0.00050605]
[1726622132587,1.174604,60170.0,60169.0,0.00250605]
[1726622132863,1.196604,60170.0,60169.0,0.00050605]
[1726622133097,1.205604,60170.0,60169.0,0.00250605]
[1726622133334,1.296604,60170.0,60169.0,0.00250605]
[1726622133567,1.658995,60170.0,60169.0,0.00250605]
[1726622133796,1.720995,60170.0,60169.0,0.00250605]
[1726622134033,1.719995,60170.0,60169.0,0.00250605]
[1726622134528,1.718995,60170.0,60169.0,0.00250605]
[1726622134780,1.356604,60170.0,60169.0,0.00050605]
[1726622135260,1.364604,60170.0,60169.0,0.00050605]
[1726622135496,1.39068512,60170.0,60169.0,0.00050605]
[1726622135971,1.39768512,60170.0,60169.0,0.00050605]
[1726622136201,1.42768512,60170.0,60169.0,0.00050605]
[1726622136432,1.41268512,60170.0,60169.0,0.00050605]
[1726622136916,1.42768512,60170.0,60169.0,0.00050605]
[1726622137625,1.76007612,60170.0,60169.0,0.00050605]
[1726622137863,1.42768512,60170.0,60169.0,0.00050605]
[1726622138110,1.39768512,60170.0,60169.0,0.00132905]
[1726622138595,1.33768512,60170.0,60169.0,0.00132905]
[1726622139073,1.36768512,60170.0,60169.0,0.00132905]
[1726622140737,1.33768512,60170.0,60169.0,0.00132905]
[1726622141226,1.32968512,60170.0,60169.0,0.00132905]
[1726622141687,1.33968512,60170.0,60169.0,0.00132905]
[1726622141917,0.931075,60163.0,60162.0,0.00554758]
[1726622142152,0.598645,60163.0,60162.0,0.00554758]
[1726622142604,0.60888336,60163.0,60162.0,0.00554758]
[1726622142834,0.94131336,60163.0,60162.0,0.00554758]
[1726622143101,0.60888336,60163.0,60162.0,0.00554758]
[1726622143333,0.61188336,60163.0,60162.0,0.00554758]
[1726622145056,0.01523836,60163.0,60162.0,0.49791829]
[1726622145291,0.18145336,60163.0,60162.0,0.17884758]
[1726622145511,0.005,60163.0,60162.0,0.17884758]
[1726622145761,0.0152166,60163.0,60162.0,0.17884758]
[1726622146014,0.166212,60164.0,60162.0,0.17884758]
[1726622146275,0.0102166,60163.0,60162.0,0.17884758]
[1726622146512,0.0122166,60163.0,60162.0,0.17884758]
[1726622147002,0.0112166,60163.0,60162.0,0.17884758]
[1726622147242,0.5098616,60163.0,60162.0,0.17884758]
[1726622147480,0.8422916,60163.0,60162.0,0.17884758]
[1726622147716,0.8412916,60163.0,60162.0,0.17884758]
[1726622147961,0.5088616,60163.0,60162.0,0.17884758]
[1726622148201,0.9432916,60163.0,60162.0,0.00554758]
[1726622148443,1.2737216,60163.0,60162.0,0.00554758]
[1726622148696,0.9442916,60163.0,60162.0,0.00554758]
[1726622148935,1.2767216,60163.0,60162.0,0.00554758]
[1726622149410,1.2787216,60163.0,60162.0,0.00554758]
[1726622149653,0.9462916,60163.0,60162.0,0.00554758]
[1726622149912,0.9502916,60163.0,60162.0,0.00554758]
[1726622150157,0.9502916,60163.0,60154.0,0.1033256]
[1726622150158,0.166237,60155.0,60154.0,0.1033256]
[1726622150401,0.166237,60155.0,60154.0,0.10783718]
[1726622150604,0.17640031,60155.0,60154.0,0.10783718]
[1726622151300,0.17740031,60155.0,60154.0,0.10783718]
[1726622151518,0.17840031,60155.0,60154.0,0.10783718]
[1726622152030,0.51087431,60155.0,60154.0,0.0994]
[1726622152267,0.17840031,60155.0,60154.0,0.10783718]
[1726622153885,0.84334831,60155.0,60154.0,0.10783718]
[1726622154610,0.84134831,60155.0,60154.0,0.10783718]
[1726622154820,0.17740031,60155.0,60154.0,0.10783718]
[1726622155036,0.51087431,60155.0,60154.0,0.10783718]
[1726622155478,0.50987431,60155.0,60154.0,0.10783718]
[1726622156170,0.51087431,60155.0,60154.0,0.10783718]
[1726622156599,0.01116331,60155.0,60154.0,0.10783718]
[1726622157054,0.17740031,60155.0,60154.0,0.10783718]
[1726622157550,0.50987431,60155.0,60154.0,0.10783718]
[1726622157757,0.01116331,60155.0,60154.0,0.10783718]
[1726622157978,0.01016331,60155.0,60154.0,0.10783718]
[1726622158197,0.166237,60155.0,60154.0,0.10783718]
[1726622158417,0.50886925,60155.0,60154.0,0.10783718]
[1726622158670,0.17739525,60155.0,60154.0,0.10783718]
[1726622159110,0.17639525,60155.0,60154.0,0.10783718]
[1726622161740,0.01015825,60155.0,60154.0,0.10783718]
[1726622161943,0.15617504,60174.0,60160.0,0.332445]
[1726622161944,0.001646,60174.0,60160.0,0.332445]
[1726622162156,0.001646,60174.0,60172.0,0.25679]
[1726622162157,0.01024106,60173.0,60172.0,0.25679]
[1726622162388,0.001646,60174.0,60173.0,0.166187]
[1726622162788,0.001646,60174.0,60172.0,0.1692]
[1726622163000,0.01032569,60173.0,60172.0,0.1692]
[1726622163220,0.84126069,60173.0,60172.0,0.08311158]
[1726622163433,0.830935,60173.0,60172.0,0.08311158]
[1726622163657,0.84121941,60173.0,60172.0,0.08311158]
[1726622164054,0.50884541,60173.0,60172.0,0.08311158]
[1726622164463,0.52284541,60173.0,60172.0,0.08311158]
[1726622164667,0.17647141,60173.0,60172.0,0.08311158]
[1726622164875,0.17647141,60173.0,60172.0,0.24930158]
[1726622164876,0.01328441,60173.0,60172.0,0.24930158]
[1726622165138,0.504561,60173.0,60172.0,0.08311158]
[1726622165347,0.51189856,60173.0,60172.0,0.08311158]
[1726622165567,0.84627256,60173.0,60172.0,0.08311158]
[1726622166017,0.51489856,60173.0,60172.0,0.08311158]
[1726622166431,0.01033756,60173.0,60172.0,0.08311158]
[1726622166655,0.17652456,60173.0,60172.0,0.08311158]
[1726622167727,0.17652456,60173.0,60172.0,0.49875529]
[1726622167728,0.01033756,60173.0,60172.0,0.49875529]
[1726622167932,0.01133756,60173.0,60172.0,0.17971158]
[1726622168135,0.01233756,60173.0,60172.0,0.17971158]
[1726622168343,0.17852456,60173.0,60172.0,0.17971158]
[1726622168580,0.01133756,60173.0,60172.0,0.17971158]
[1726622168785,0.01033756,60173.0,60172.0,0.18171158]
[1726622169023,0.01033756,60173.0,60172.0,0.18471158]
[1726622169235,0.01033756,60173.0,60172.0,0.18271158]
[1726622169451,0.01033756,60173.0,60172.0,0.17971158]
[1726622169661,0.01033756,60173.0,60172.0,0.18071158]
[1726622170492,0.01033756,60173.0,60172.0,0.67928158]
[1726622170902,0.001646,60174.0,60172.0,0.18071158]
[1726622171068,0.001646,60174.0,60172.0,0.17971158]
[1726622171283,0.001646,60174.0,60172.0,0.34790058]
[1726622171491,0.01036393,60173.0,60172.0,0.34790058]
[1726622171694,0.01236393,60173.0,60172.0,0.34790058]
[1726622171929,0.01236393,60173.0,60172.0,0.67828058]
[1726622172108,0.01236393,60173.0,60172.0,0.68428058]
[1726622172330,0.168187,60173.0,60172.0,0.18571158]
[1726622172596,0.168187,60173.0,60172.0,0.17971158]
[1726622172597,0.166187,60173.0,60172.0,0.17971158]
[1726622172830,0.84226871,60173.0,60172.0,0.18371158]
[1726622173051,0.84226871,60173.0,60172.0,0.00651158]
[1726622173852,1.27464271,60173.0,60172.0,0.00651158]
[1726622174083,1.27364271,60173.0,60172.0,0.00451158]
[1726622174978,1.27664271,60173.0,60172.0,0.00451158]
[1726622175691,1.27564271,60173.0,60172.0,0.00451158]
[1726622175959,0.94126871,60173.0,60172.0,0.00451158]
[1726622176203,0.94126871,60173.0,60172.0,0.15736529]
[1726622176204,0.11033371,60173.0,60172.0,0.15736529]
[1726622176410,0.01833371,60173.0,60172.0,0.15736529]
[1726622176628,0.01833371,60173.0,60172.0,0.23956529]
[1726622177051,0.84126871,60173.0,60172.0,0.08671158]
[1726622177265,0.52389471,60173.0,60172.0,0.08671158]
[1726622177739,0.51689471,60173.0,60172.0,0.08671158]
[1726622178148,0.18552071,60173.0,60172.0,0.08871158]
[1726622178574,0.17652071,60173.0,60172.0,0.08671158]
[1726622179049,0.17852071,60173.0,60172.0,0.09071158]
[1726622179259,0.17852071,60173.0,60172.0,0.08671158]
[1726622179690,0.18452071,60173.0,60172.0,0.08671158]
[1726622179895,0.01833371,60173.0,60172.0,0.08671158]
[1726622180145,0.02133371,60173.0,60172.0,0.23956529]
[1726622180362,0.01333371,60173.0,60172.0,0.23956529]
[1726622180566,0.01633371,60173.0,60172.0,0.23956529]
[1726622180986,0.01633371,60173.0,60172.0,0.40575529]
[1726622181203,0.01333371,60173.0,60172.0,0.73813529]
[1726622181415,0.01433371,60173.0,60172.0,0.74013529]
[1726622181626,0.01433371,60173.0,60172.0,1.07251529]
[1726622181836,0.004,60173.0,60172.0,1.07114393]
[1726622182254,0.004,60173.0,60172.0,1.07020893]
[1726622182708,0.001,60173.0,60172.0,1.06920893]
[1726622182934,0.001,60173.0,60172.0,1.07320893]
[1726622183146,0.002,60173.0,60172.0,1.07320893]
[1726622183353,0.001,60173.0,60172.0,1.06720893]
[1726622183570,0.002,60173.0,60172.0,1.40358893]
[1726622183770,0.003,60173.0,60172.0,1.40558893]
[1726622184003,0.001,60173.0,60172.0,1.40158893]
[1726622184329,0.001,60173.0,60172.0,1.49898893]
[1726622184556,0.001,60173.0,60172.0,1.50098893]
[1726622184557,0.002,60173.0,60172.0,1.50098893]
[1726622185240,0.001,60173.0,60172.0,1.49898893]
[1726622185977,0.001646,60174.0,60173.0,0.166187]
[1726622186230,0.001646,60174.0,60173.0,0.498561]
[1726622186453,0.001646,60174.0,60173.0,0.830935]
[1726622187205,0.001646,60174.0,60173.0,0.832935]
[1726622187456,0.003646,60174.0,60173.0,0.836935]
[1726622187690,0.002646,60174.0,60173.0,0.830935]
[1726622188176,0.003646,60174.0,60173.0,0.832935]
[1726622188433,0.003646,60174.0,60173.0,0.833935]
[1726622189127,0.004646,60174.0,60173.0,0.837935]
[1726622189362,0.002646,60174.0,60173.0,0.833935]
[1726622189586,0.002646,60174.0,60173.0,0.835935]
[1726622189830,0.003646,60174.0,60173.0,0.833935]
[1726622190332,0.003646,60174.0,60173.0,1.167309]
[1726622190584,0.003646,60174.0,60173.0,1.169309]
[1726622190815,0.004646,60174.0,60173.0,1.169309]
[1726622191006,0.002646,60174.0,60173.0,1.163309]
[1726622191286,0.001646,60174.0,60173.0,1.163309]
[1726622191512,0.002646,60174.0,60173.0,1.165309]
[1726622192632,0.001646,60174.0,60173.0,1.163309]
[1726622192900,0.003646,60174.0,60173.0,1.169309]
[1726622193312,0.002646,60174.0,60173.0,1.163309]
[1726622193566,0.002646,60174.0,60173.0,0.502561]
[1726622193823,0.002646,60174.0,60173.0,0.500561]
[1726622193824,0.003646,60174.0,60173.0,0.500561]
[1726622194277,0.003646,60174.0,60173.0,0.502561]
[1726622194497,0.003646,60174.0,60173.0,0.834935]
[1726622194953,0.003646,60174.0,60173.0,0.503561]
[1726622195207,0.004646,60174.0,60173.0,0.505561]
[1726622197690,0.004646,60174.0,60173.0,0.837935]
[1726622199270,0.004646,60174.0,60173.0,0.505561]
[1726622200428,0.004646,60174.0,60173.0,0.172187]
[1726622200662,0.004646,60174.0,60173.0,0.006]
[1726622200663,0.835568,60174.0,60173.0,0.006]
[1726622201136,0.84600625,60174.0,60173.0,0.006]
[1726622201369,0.84500625,60174.0,60173.0,0.004]
[1726622202127,0.830935,60173.0,60172.0,0.00120522]
[1726622202624,0.84129171,60173.0,60172.0,0.00120522]
[1726622202876,1.17366571,60173.0,60172.0,0.00120522]
[1726622203202,1.60603971,60173.0,60172.0,0.00120522]
[1726622203413,1.62903971,60173.0,60172.0,0.00520522]
[1726622203653,1.62903971,60173.0,60172.0,0.00320522]
[1726622203654,1.63003971,60173.0,60172.0,0.00320522]
[1726622203902,2.04132562,60173.0,60172.0,0.00320522]
[1726622204141,2.04132562,60173.0,60172.0,0.00620522]
[1726622204381,2.04032562,60173.0,60172.0,0.00420522]
[1726622204609,1.495935,60163.0,60162.0,0.000823]
[1726622204837,1.62925458,60163.0,60162.0,0.000823]
[1726622205293,1.65925458,60163.0,60162.0,0.000823]
[1726622205517,2.01776865,60163.0,60162.0,0.000823]
[1726622205770,2.07776865,60163.0,60162.0,0.000823]